[Event "Titled Tuesday Blitz March 21 Early 2023"]
[White "Samunenkov, Ihor"]
[Black "Carlsen, Magnus"]
[WhiteFideId "14187086"]
[BlackFideId "1503014"]
[WhiteElo "2457"]
[BlackElo "2852"]
[Result "1/2-1/2"]
[Round "07"]
[TimeControl "180+2"]
[Date "2023.03.21"]
[WhiteClock "0:00:05"]
[BlackClock "0:00:05"]

1. d4 {[%clk 0:03:00]}  d5 {[%clk 0:02:59]} 2. c4 {[%clk 0:03:00]}  e6 {[%clk 0:03:00]} 3. Nf3 {[%clk 0:03:00]}  a6 {[%clk 0:02:59]} 4. cxd5 {[%clk 0:02:58]}  exd5 {[%clk 0:02:59]} 5. Nc3 {[%clk 0:02:58]}  c6 {[%clk 0:02:59]} 6. e4 {[%clk 0:02:51]}  Bb4 {[%clk 0:02:56]} 7. e5 {[%clk 0:02:45]}  Ne7 {[%clk 0:02:55]} 8. a3 {[%clk 0:02:42]}  Ba5 {[%clk 0:02:55]} 9. Bd3 {[%clk 0:02:36]}  Bg4 {[%clk 0:02:54]} 10. O-O {[%clk 0:02:34]}  Nd7 {[%clk 0:02:53]} 11. b4 {[%clk 0:02:29]}  Bb6 {[%clk 0:02:52]} 12. Be3 {[%clk 0:02:30]}  Nf8 {[%clk 0:02:48]} 13. Na4 {[%clk 0:02:22]}  Ne6 {[%clk 0:02:47]} 14. Nc5 {[%clk 0:02:19]}  Bxc5 {[%clk 0:02:37]} 15. bxc5 {[%clk 0:02:20]}  Nf5 {[%clk 0:02:38]} 16. Bxf5 {[%clk 0:02:16]}  Bxf5 {[%clk 0:02:38]} 17. Qb3 {[%clk 0:02:16]}  Qe7 {[%clk 0:02:34]} 18. Nd2 {[%clk 0:02:00]}  O-O {[%clk 0:02:32]} 19. Qb2 {[%clk 0:01:54]}  f6 {[%clk 0:02:30]} 20. exf6 {[%clk 0:01:44]}  Qxf6 {[%clk 0:02:06]} 21. Nf3 {[%clk 0:01:41]}  Nxc5 {[%clk 0:02:06]} 22. Bg5 {[%clk 0:01:34]}  Nd3 {[%clk 0:01:59]} 23. Qxb7 {[%clk 0:01:33]}  Qg6 {[%clk 0:01:59]} 24. Be7 {[%clk 0:01:12]}  Be4 {[%clk 0:01:45]} 25. Nh4 {[%clk 0:01:09]}  Qf7 {[%clk 0:01:40]} 26. f3 {[%clk 0:01:05]}  Bg6 {[%clk 0:01:19]} 27. Nxg6 {[%clk 0:01:04]}  hxg6 {[%clk 0:01:19]} 28. Qb3 {[%clk 0:01:04]}  Qxe7 {[%clk 0:01:17]} 29. Qxd3 {[%clk 0:01:04]}  Qf6 {[%clk 0:01:14]} 30. Rab1 {[%clk 0:00:59]}  a5 {[%clk 0:01:11]} 31. Rfe1 {[%clk 0:00:59]}  Rae8 {[%clk 0:01:11]} 32. Qd2 {[%clk 0:00:50]}  a4 {[%clk 0:01:10]} 33. Rbc1 {[%clk 0:00:48]}  Qd6 {[%clk 0:01:06]} 34. Qc3 {[%clk 0:00:39]}  Rxe1+ {[%clk 0:01:02]} 35. Rxe1 {[%clk 0:00:39]}  Rb8 {[%clk 0:01:03]} 36. Qe3 {[%clk 0:00:32]}  Qf6 {[%clk 0:00:40]} 37. Qe6+ {[%clk 0:00:29]}  Kh7 {[%clk 0:00:32]} 38. Qxf6 {[%clk 0:00:27]}  gxf6 {[%clk 0:00:33]} 39. Re6 {[%clk 0:00:27]}  Rb1+ {[%clk 0:00:31]} 40. Kf2 {[%clk 0:00:27]}  Rb2+ {[%clk 0:00:32]} 41. Kg3 {[%clk 0:00:26]}  Kg7 {[%clk 0:00:29]} 42. Rxc6 {[%clk 0:00:26]}  Rd2 {[%clk 0:00:30]} 43. Rc7+ {[%clk 0:00:24]}  Kh6 {[%clk 0:00:29]} 44. Rc6 {[%clk 0:00:22]}  f5 {[%clk 0:00:29]} 45. Rd6 {[%clk 0:00:10]}  Rxd4 {[%clk 0:00:30]} 46. Kh3 {[%clk 0:00:09]}  Kg5 {[%clk 0:00:28]} 47. Kg3 {[%clk 0:00:09]}  f4+ {[%clk 0:00:28]} 48. Kf2 {[%clk 0:00:07]}  Rd2+ {[%clk 0:00:27]} 49. Ke1 {[%clk 0:00:06]}  Rd3 {[%clk 0:00:28]} 50. Ke2 {[%clk 0:00:06]}  Re3+ {[%clk 0:00:24]} 51. Kf2 {[%clk 0:00:06]}  Rxa3 {[%clk 0:00:25]} 52. Rxd5+ {[%clk 0:00:06]}  Kf6 {[%clk 0:00:25]} 53. g3 {[%clk 0:00:02]}  Ra2+ {[%clk 0:00:25]} 54. Kg1 {[%clk 0:00:02]}  a3 {[%clk 0:00:26]} 55. Ra5 {[%clk 0:00:03]}  Ke6 {[%clk 0:00:20]} 56. Ra6+ {[%clk 0:00:03]}  Ke5 {[%clk 0:00:20]} 57. Ra4 {[%clk 0:00:02]}  Kd5 {[%clk 0:00:19]} 58. gxf4 {[%clk 0:00:02]}  Kc5 {[%clk 0:00:19]} 59. h4 {[%clk 0:00:02]}  Kb5 {[%clk 0:00:20]} 60. Ra8 {[%clk 0:00:03]}  Kb4 {[%clk 0:00:20]} 61. f5 {[%clk 0:00:03]}  gxf5 {[%clk 0:00:21]} 62. h5 {[%clk 0:00:04]}  Rc2 {[%clk 0:00:19]} 63. h6 {[%clk 0:00:03]}  Rc7 {[%clk 0:00:18]} 64. Rb8+ {[%clk 0:00:02]}  Kc3 {[%clk 0:00:18]} 65. Ra8 {[%clk 0:00:03]}  Kb2 {[%clk 0:00:18]} 66. Kg2 {[%clk 0:00:03]}  Rh7 {[%clk 0:00:16]} 67. Kg3 {[%clk 0:00:03]}  Rxh6 {[%clk 0:00:15]} 68. Kf4 {[%clk 0:00:04]}  Rh5 {[%clk 0:00:14]} 69. Rb8+ {[%clk 0:00:04]}  Ka1 {[%clk 0:00:14]} 70. Rb5 {[%clk 0:00:03]}  a2 {[%clk 0:00:14]} 71. Rb8 {[%clk 0:00:04]}  Rh3 {[%clk 0:00:13]} 72. Rb7 {[%clk 0:00:03]}  Rh1 {[%clk 0:00:11]} 73. Kxf5 {[%clk 0:00:03]}  Rb1 {[%clk 0:00:11]} 74. Ra7 {[%clk 0:00:02]}  Kb2 {[%clk 0:00:11]} 75. f4 {[%clk 0:00:02]}  a1=Q {[%clk 0:00:06]} 76. Rxa1 {[%clk 0:00:03]}  Rxa1 {[%clk 0:00:07]} 77. Ke5 {[%clk 0:00:03]}  Re1+ {[%clk 0:00:05]} 78. Kd5 {[%clk 0:00:02]}  Rf1 {[%clk 0:00:03]} 79. Ke5 {[%clk 0:00:02]}  Kc3 {[%clk 0:00:03]} 80. f5 {[%clk 0:00:03]}  Kc4 {[%clk 0:00:04]} 81. f6 {[%clk 0:00:03]}  Kc5 {[%clk 0:00:02]} 82. Ke6 {[%clk 0:00:04]}  Re1+ {[%clk 0:00:03]} 83. Kd7 {[%clk 0:00:04]}  Rd1+ {[%clk 0:00:03]} 84. Ke7 {[%clk 0:00:03]}  Re1+ {[%clk 0:00:02]} 85. Kd7 {[%clk 0:00:03]}  Kd5 {[%clk 0:00:03]} 86. f7 {[%clk 0:00:03]}  Rf1 {[%clk 0:00:04]} 87. Ke7 {[%clk 0:00:04]}  Ke5 {[%clk 0:00:04]} 88. f8=Q {[%clk 0:00:04]}  Rxf8 {[%clk 0:00:05]} 89. Kxf8 {[%clk 0:00:05]} 1/2-1/2


[Site "https://www.chess.com"]

[Event "Titled Tuesday Blitz March 21 Early 2023"]
[White "Nazari, Arad"]
[Black "Erigaisi Arjun"]
[WhiteFideId "12577324"]
[BlackFideId "35009192"]
[WhiteElo "2313"]
[BlackElo "2737"]
[Result "0-1"]
[Round "07"]
[TimeControl "180+2"]
[Date "2023.03.21"]
[WhiteClock "0:00:02"]
[BlackClock "0:00:52"]

1. e4 {[%clk 0:03:00]}  d6 {[%clk 0:03:00]} 2. d4 {[%clk 0:03:00]}  g6 {[%clk 0:03:01]} 3. Nc3 {[%clk 0:03:01]}  Bg7 {[%clk 0:03:01]} 4. f4 {[%clk 0:03:01]}  a6 {[%clk 0:03:02]} 5. Nf3 {[%clk 0:03:01]}  b5 {[%clk 0:03:02]} 6. Bd3 {[%clk 0:03:01]}  Nd7 {[%clk 0:03:01]} 7. a4 {[%clk 0:03:01]}  b4 {[%clk 0:03:01]} 8. Ne2 {[%clk 0:03:02]}  c5 {[%clk 0:03:01]} 9. c3 {[%clk 0:03:02]}  Ngf6 {[%clk 0:02:52]} 10. O-O {[%clk 0:02:56]}  bxc3 {[%clk 0:02:53]} 11. bxc3 {[%clk 0:02:56]}  O-O {[%clk 0:02:53]} 12. e5 {[%clk 0:02:41]}  Nd5 {[%clk 0:02:41]} 13. Be4 {[%clk 0:02:41]}  Bb7 {[%clk 0:02:41]} 14. Qb3 {[%clk 0:02:10]}  Nxf4 {[%clk 0:02:41]} 15. Nxf4 {[%clk 0:01:57]}  Bxe4 {[%clk 0:02:40]} 16. e6 {[%clk 0:01:54]}  Qb6 {[%clk 0:02:12]} 17. exf7+ {[%clk 0:01:22]}  Rxf7 {[%clk 0:02:07]} 18. Qxb6 {[%clk 0:01:23]}  Nxb6 {[%clk 0:02:07]} 19. Ng5 {[%clk 0:01:23]}  Rxf4 {[%clk 0:01:55]} 20. Bxf4 {[%clk 0:01:18]}  Bd3 {[%clk 0:01:48]} 21. Rfd1 {[%clk 0:00:59]}  Bc2 {[%clk 0:01:42]} 22. Rdc1 {[%clk 0:00:45]}  Bf5 {[%clk 0:01:41]} 23. dxc5 {[%clk 0:00:41]}  dxc5 {[%clk 0:01:41]} 24. Be3 {[%clk 0:00:36]}  Nd5 {[%clk 0:01:36]} 25. Bxc5 {[%clk 0:00:32]}  Nxc3 {[%clk 0:01:36]} 26. Kh1 {[%clk 0:00:17]}  Ne2 {[%clk 0:01:34]} 27. Bxe7 {[%clk 0:00:10]}  Re8 {[%clk 0:01:29]} 28. Ba3 {[%clk 0:00:10]}  h6 {[%clk 0:01:16]} 29. Nf3 {[%clk 0:00:09]}  g5 {[%clk 0:01:05]} 30. Re1 {[%clk 0:00:10]}  Bxa1 {[%clk 0:01:05]} 31. Rxa1 {[%clk 0:00:10]}  g4 {[%clk 0:01:06]} 32. Nd2 {[%clk 0:00:09]}  Rd8 {[%clk 0:01:04]} 33. Nc4 {[%clk 0:00:10]}  Be4 {[%clk 0:01:04]} 34. Re1 {[%clk 0:00:07]}  Rd3 {[%clk 0:01:01]} 35. Bb2 {[%clk 0:00:03]}  Bd5 {[%clk 0:00:53]} 36. Ne5 {[%clk 0:00:03]}  Rd2 {[%clk 0:00:52]} 37. Bc1 {[%clk 0:00:02]}  Nxc1 {[%clk 0:00:53]} 38. Rxc1 {[%clk 0:00:03]}  Rxg2 {[%clk 0:00:53]} 39. h4 {[%clk 0:00:02]}  Rc2+ {[%clk 0:00:52]} 0-1


[Site "https://www.chess.com"]

[Event "Titled Tuesday Blitz March 21 Early 2023"]
[White "Hernandez Gonzalez, William"]
[Black "Tari, Aryan"]
[WhiteFideId "3509915"]
[BlackFideId "1510045"]
[WhiteElo "2374"]
[BlackElo "2583"]
[Result "0-1"]
[Round "07"]
[TimeControl "180+2"]
[Date "2023.03.21"]
[WhiteClock "0:00:01"]
[BlackClock "0:00:35"]

1. e4 {[%clk 0:03:00]}  c5 {[%clk 0:02:57]} 2. Nf3 {[%clk 0:03:00]}  d6 {[%clk 0:02:56]} 3. d4 {[%clk 0:03:00]}  cxd4 {[%clk 0:02:57]} 4. Nxd4 {[%clk 0:03:00]}  Nf6 {[%clk 0:02:58]} 5. Nc3 {[%clk 0:03:01]}  a6 {[%clk 0:02:58]} 6. Bg5 {[%clk 0:03:01]}  e6 {[%clk 0:02:54]} 7. f4 {[%clk 0:03:01]}  Qc7 {[%clk 0:02:54]} 8. Bxf6 {[%clk 0:02:47]}  gxf6 {[%clk 0:02:55]} 9. Be2 {[%clk 0:02:46]}  Nc6 {[%clk 0:02:54]} 10. Nb3 {[%clk 0:02:43]}  b5 {[%clk 0:02:45]} 11. Bh5 {[%clk 0:02:39]}  Qb6 {[%clk 0:02:40]} 12. Qd2 {[%clk 0:02:28]}  Bd7 {[%clk 0:02:36]} 13. O-O-O {[%clk 0:02:10]}  b4 {[%clk 0:02:31]} 14. Nd5 {[%clk 0:01:45]}  exd5 {[%clk 0:02:31]} 15. exd5 {[%clk 0:01:46]}  Ne7 {[%clk 0:02:24]} 16. Rhe1 {[%clk 0:01:33]}  Rg8 {[%clk 0:02:17]} 17. Re4 {[%clk 0:01:19]}  a5 {[%clk 0:02:06]} 18. Nd4 {[%clk 0:01:19]}  f5 {[%clk 0:01:36]} 19. Re2 {[%clk 0:01:08]}  Bg7 {[%clk 0:01:21]} 20. Rxe7+ {[%clk 0:00:51]}  Kxe7 {[%clk 0:01:18]} 21. Qe1+ {[%clk 0:00:52]}  Kd8 {[%clk 0:01:04]} 22. Nc6+ {[%clk 0:00:08]}  Kc7 {[%clk 0:00:46]} 23. Bxf7 {[%clk 0:00:06]}  Bf6 {[%clk 0:00:44]} 24. Bxg8 {[%clk 0:00:05]}  Rxg8 {[%clk 0:00:45]} 25. g3 {[%clk 0:00:04]}  Qc5 {[%clk 0:00:42]} 26. Qd2 {[%clk 0:00:02]}  Re8 {[%clk 0:00:42]} 27. Qd3 {[%clk 0:00:02]}  Qe3+ {[%clk 0:00:37]} 28. Qxe3 {[%clk 0:00:02]}  Rxe3 {[%clk 0:00:37]} 29. Kd2 {[%clk 0:00:02]}  Re8 {[%clk 0:00:35]} 30. Nxa5 {[%clk 0:00:01]}  Bxb2 {[%clk 0:00:35]} 31. Rb1 {[%clk 0:00:01]}  Bc3+ {[%clk 0:00:35]} 32. Kd1 {[%clk 0:00:01]}  Re1# {[%clk 0:00:35]} 0-1


[Site "https://www.chess.com"]

[Event "Titled Tuesday Blitz March 21 Early 2023"]
[White "Grigoriants, Sergey"]
[Black "Mindlin, Alon"]
[WhiteFideId "4130804"]
[BlackFideId "2800071"]
[WhiteElo "2502"]
[BlackElo "2430"]
[Result "1-0"]
[Round "07"]
[TimeControl "180+2"]
[Date "2023.03.21"]
[WhiteClock "0:00:08"]
[BlackClock "0:00:51"]

1. d4 {[%clk 0:02:55]}  Nf6 {[%clk 0:02:59]} 2. c4 {[%clk 0:02:54]}  e6 {[%clk 0:02:59]} 3. g3 {[%clk 0:02:55]}  Bb4+ {[%clk 0:02:59]} 4. Bd2 {[%clk 0:02:53]}  Qe7 {[%clk 0:02:59]} 5. Bg2 {[%clk 0:02:53]}  Nc6 {[%clk 0:02:58]} 6. e3 {[%clk 0:02:28]}  O-O {[%clk 0:02:55]} 7. Ne2 {[%clk 0:02:26]}  Bxd2+ {[%clk 0:02:54]} 8. Qxd2 {[%clk 0:02:26]}  d5 {[%clk 0:02:54]} 9. cxd5 {[%clk 0:02:18]}  exd5 {[%clk 0:02:52]} 10. Nbc3 {[%clk 0:02:19]}  Rd8 {[%clk 0:02:52]} 11. O-O {[%clk 0:02:18]}  Be6 {[%clk 0:02:51]} 12. Nf4 {[%clk 0:02:18]}  Nb8 {[%clk 0:02:42]} 13. Rae1 {[%clk 0:02:18]}  c6 {[%clk 0:02:41]} 14. e4 {[%clk 0:02:02]}  dxe4 {[%clk 0:02:39]} 15. Nxe4 {[%clk 0:02:02]}  Nbd7 {[%clk 0:02:39]} 16. Ng5 {[%clk 0:01:54]}  Nf8 {[%clk 0:02:35]} 17. Bh3 {[%clk 0:01:45]}  Rd6 {[%clk 0:02:26]} 18. Qb4 {[%clk 0:01:42]}  Re8 {[%clk 0:02:18]} 19. Ngxe6 {[%clk 0:01:14]}  Nxe6 {[%clk 0:02:17]} 20. Nxe6 {[%clk 0:01:08]}  Rxe6 {[%clk 0:02:16]} 21. Qxe7 {[%clk 0:00:59]}  R6xe7 {[%clk 0:02:16]} 22. Rxe7 {[%clk 0:00:46]}  Rxe7 {[%clk 0:02:16]} 23. Rc1 {[%clk 0:00:47]}  Nd5 {[%clk 0:02:12]} 24. Bg2 {[%clk 0:00:45]}  Rd7 {[%clk 0:02:04]} 25. Bxd5 {[%clk 0:00:40]}  Rxd5 {[%clk 0:02:03]} 26. Rc4 {[%clk 0:00:41]}  Kf8 {[%clk 0:02:01]} 27. f4 {[%clk 0:00:37]}  Ke7 {[%clk 0:02:01]} 28. Kf2 {[%clk 0:00:37]}  Kd6 {[%clk 0:02:01]} 29. Ke3 {[%clk 0:00:38]}  a5 {[%clk 0:01:59]} 30. b3 {[%clk 0:00:35]}  Rh5 {[%clk 0:01:56]} 31. h4 {[%clk 0:00:35]}  Rd5 {[%clk 0:01:55]} 32. g4 {[%clk 0:00:33]}  h5 {[%clk 0:01:54]} 33. g5 {[%clk 0:00:34]}  Ke6 {[%clk 0:01:51]} 34. Ke4 {[%clk 0:00:33]}  f5+ {[%clk 0:01:50]} 35. Ke3 {[%clk 0:00:26]}  Kd6 {[%clk 0:01:49]} 36. a3 {[%clk 0:00:22]}  Rb5 {[%clk 0:01:48]} 37. b4 {[%clk 0:00:21]}  Kd5 {[%clk 0:01:40]} 38. Kd3 {[%clk 0:00:21]}  axb4 {[%clk 0:01:39]} 39. axb4 {[%clk 0:00:21]}  g6 {[%clk 0:01:21]} 40. Rc5+ {[%clk 0:00:20]}  Kd6 {[%clk 0:01:20]} 41. Kc4 {[%clk 0:00:18]}  Rb6 {[%clk 0:01:17]} 42. Re5 {[%clk 0:00:14]}  Ra6 {[%clk 0:01:14]} 43. Re8 {[%clk 0:00:12]}  b5+ {[%clk 0:01:14]} 44. Kb3 {[%clk 0:00:10]}  Kd5 {[%clk 0:01:12]} 45. Rg8 {[%clk 0:00:09]}  Kxd4 {[%clk 0:01:07]} 46. Rxg6 {[%clk 0:00:09]}  Ke4 {[%clk 0:01:08]} 47. Rh6 {[%clk 0:00:09]}  Kxf4 {[%clk 0:01:08]} 48. Rxh5 {[%clk 0:00:10]}  Kg4 {[%clk 0:01:08]} 49. Rh7 {[%clk 0:00:08]}  f4 {[%clk 0:01:08]} 50. g6 {[%clk 0:00:09]}  c5 {[%clk 0:01:07]} 51. g7 {[%clk 0:00:07]}  c4+ {[%clk 0:01:08]} 52. Kc3 {[%clk 0:00:06]}  Rg6 {[%clk 0:01:08]} 53. h5 {[%clk 0:00:07]}  Rg5 {[%clk 0:01:09]} 54. h6 {[%clk 0:00:07]}  f3 {[%clk 0:01:09]} 55. Rh8 {[%clk 0:00:08]}  f2 {[%clk 0:00:57]} 56. Rf8 {[%clk 0:00:08]}  Kg3 {[%clk 0:00:57]} 57. h7 {[%clk 0:00:07]}  Rxg7 {[%clk 0:00:56]} 58. h8=Q {[%clk 0:00:08]}  Rg4 {[%clk 0:00:54]} 59. Qe5+ {[%clk 0:00:08]}  Kg2 {[%clk 0:00:53]} 60. Qf5 {[%clk 0:00:07]}  Rg3+ {[%clk 0:00:52]} 61. Kd4 {[%clk 0:00:08]}  Rd3+ {[%clk 0:00:51]} 62. Kc5 {[%clk 0:00:08]} 1-0


[Site "https://www.chess.com"]

[Event "Titled Tuesday Blitz March 21 Early 2023"]
[White "Liyanage, Ranindu Dilshan"]
[Black "Moroni, Luca Jr"]
[WhiteFideId "9915834"]
[BlackFideId "865834"]
[WhiteElo "2199"]
[BlackElo "2569"]
[Result "0-1"]
[Round "07"]
[TimeControl "180+2"]
[Date "2023.03.21"]
[WhiteClock "0:00:04"]
[BlackClock "0:00:06"]

1. e4 {[%clk 0:02:52]}  g6 {[%clk 0:03:00]} 2. d4 {[%clk 0:02:51]}  Bg7 {[%clk 0:03:01]} 3. Nc3 {[%clk 0:02:52]}  a6 {[%clk 0:03:00]} 4. f4 {[%clk 0:02:52]}  d5 {[%clk 0:02:59]} 5. Nxd5 {[%clk 0:02:40]}  e6 {[%clk 0:02:59]} 6. Ne3 {[%clk 0:02:40]}  Qxd4 {[%clk 0:03:00]} 7. Bd3 {[%clk 0:02:39]}  Qb4+ {[%clk 0:02:45]} 8. c3 {[%clk 0:02:05]}  Bxc3+ {[%clk 0:02:44]} 9. bxc3 {[%clk 0:02:06]}  Qxc3+ {[%clk 0:02:44]} 10. Kf2 {[%clk 0:02:01]}  Qxa1 {[%clk 0:02:43]} 11. Qc2 {[%clk 0:02:02]}  Qf6 {[%clk 0:02:35]} 12. Nf3 {[%clk 0:01:45]}  Qe7 {[%clk 0:02:31]} 13. Bb2 {[%clk 0:01:37]}  f6 {[%clk 0:02:30]} 14. Re1 {[%clk 0:01:36]}  Kf7 {[%clk 0:02:26]} 15. Bc4 {[%clk 0:01:34]}  Kg7 {[%clk 0:02:22]} 16. g4 {[%clk 0:01:32]}  h6 {[%clk 0:02:21]} 17. h4 {[%clk 0:01:29]}  Nc6 {[%clk 0:02:19]} 18. g5 {[%clk 0:01:25]}  hxg5 {[%clk 0:02:20]} 19. hxg5 {[%clk 0:01:25]}  e5 {[%clk 0:01:51]} 20. gxf6+ {[%clk 0:01:10]}  Nxf6 {[%clk 0:01:52]} 21. fxe5 {[%clk 0:01:10]}  Ng4+ {[%clk 0:01:49]} 22. Nxg4 {[%clk 0:01:09]}  Bxg4 {[%clk 0:01:50]} 23. e6+ {[%clk 0:01:06]}  Kg8 {[%clk 0:01:50]} 24. Qc3 {[%clk 0:00:44]}  Rh3 {[%clk 0:01:40]} 25. Kg2 {[%clk 0:00:44]}  Rf8 {[%clk 0:01:02]} 26. Re3 {[%clk 0:00:44]}  Rh5 {[%clk 0:00:37]} 27. Nh2 {[%clk 0:00:21]}  Ne5 {[%clk 0:00:30]} 28. Rg3 {[%clk 0:00:18]}  Bxe6 {[%clk 0:00:17]} 29. Bxe6+ {[%clk 0:00:14]}  Qxe6 {[%clk 0:00:18]} 30. Ng4 {[%clk 0:00:15]}  Qf7 {[%clk 0:00:07]} 31. Qe1 {[%clk 0:00:03]}  Nxg4 {[%clk 0:00:06]} 32. Rxg4 {[%clk 0:00:04]}  Qf3+ {[%clk 0:00:06]} 0-1


[Site "https://www.chess.com"]

[Event "Titled Tuesday Blitz March 21 Early 2023"]
[White "Ibarra Jerez, Jose Carlos"]
[Black "Bronstein, Or"]
[WhiteFideId "2226332"]
[BlackFideId "2815770"]
[WhiteElo "2638"]
[BlackElo "2356"]
[Result "1-0"]
[Round "07"]
[TimeControl "180+2"]
[Date "2023.03.21"]
[WhiteClock "0:01:37"]
[BlackClock "0:00:26"]

1. e4 {[%clk 0:02:59]}  c5 {[%clk 0:02:46]} 2. Nc3 {[%clk 0:02:59]}  a6 {[%clk 0:02:46]} 3. g4 {[%clk 0:02:58]}  b5 {[%clk 0:02:44]} 4. Bg2 {[%clk 0:02:59]}  Bb7 {[%clk 0:02:44]} 5. d3 {[%clk 0:02:59]}  e6 {[%clk 0:02:39]} 6. Nh3 {[%clk 0:02:59]}  d5 {[%clk 0:02:37]} 7. exd5 {[%clk 0:02:59]}  Nf6 {[%clk 0:02:36]} 8. Nf4 {[%clk 0:02:56]}  b4 {[%clk 0:02:30]} 9. g5 {[%clk 0:02:56]}  bxc3 {[%clk 0:02:18]} 10. gxf6 {[%clk 0:02:56]}  Qxf6 {[%clk 0:01:59]} 11. Rb1 {[%clk 0:02:56]}  Bd6 {[%clk 0:01:53]} 12. bxc3 {[%clk 0:02:31]}  Bxf4 {[%clk 0:01:37]} 13. Bxf4 {[%clk 0:02:25]}  Qxf4 {[%clk 0:01:30]} 14. Rxb7 {[%clk 0:02:24]}  O-O {[%clk 0:01:21]} 15. dxe6 {[%clk 0:02:16]}  Qe5+ {[%clk 0:01:09]} 16. Qe2 {[%clk 0:01:59]}  Qxc3+ {[%clk 0:01:07]} 17. Kf1 {[%clk 0:01:59]}  fxe6 {[%clk 0:00:53]} 18. Re7 {[%clk 0:01:40]}  Qa1+ {[%clk 0:00:34]} 19. Qe1 {[%clk 0:01:39]}  Qf6 {[%clk 0:00:26]} 20. Rxe6 {[%clk 0:01:37]} 1-0


[Site "https://www.chess.com"]

[Event "Titled Tuesday Blitz March 21 Early 2023"]
[White "Costachi, Mihnea"]
[Black "Matinian, Nikita"]
[WhiteFideId "1217518"]
[BlackFideId "24129100"]
[WhiteElo "2456"]
[BlackElo "2422"]
[Result "1-0"]
[Round "07"]
[TimeControl "180+2"]
[Date "2023.03.21"]
[WhiteClock "0:00:29"]
[BlackClock "0:00:02"]

1. d4 {[%clk 0:03:00]}  Nf6 {[%clk 0:02:59]} 2. c4 {[%clk 0:03:01]}  g6 {[%clk 0:02:59]} 3. Nc3 {[%clk 0:03:00]}  Bg7 {[%clk 0:03:00]} 4. e4 {[%clk 0:03:01]}  d6 {[%clk 0:03:00]} 5. Be2 {[%clk 0:02:59]}  O-O {[%clk 0:03:00]} 6. Bg5 {[%clk 0:03:00]}  h6 {[%clk 0:02:59]} 7. Be3 {[%clk 0:02:59]}  Nbd7 {[%clk 0:02:58]} 8. Qd2 {[%clk 0:02:59]}  Kh7 {[%clk 0:02:58]} 9. f3 {[%clk 0:03:00]}  e5 {[%clk 0:02:58]} 10. d5 {[%clk 0:03:00]}  Nc5 {[%clk 0:02:52]} 11. g4 {[%clk 0:03:01]}  c6 {[%clk 0:02:50]} 12. b4 {[%clk 0:02:56]}  Na6 {[%clk 0:02:45]} 13. a3 {[%clk 0:02:56]}  cxd5 {[%clk 0:02:42]} 14. cxd5 {[%clk 0:02:57]}  Bd7 {[%clk 0:02:41]} 15. h4 {[%clk 0:02:57]}  Nc7 {[%clk 0:02:30]} 16. Nh3 {[%clk 0:02:56]}  a5 {[%clk 0:02:28]} 17. b5 {[%clk 0:02:49]}  Rc8 {[%clk 0:02:25]} 18. Nf2 {[%clk 0:02:24]}  Na8 {[%clk 0:02:14]} 19. Na4 {[%clk 0:02:24]}  b6 {[%clk 0:01:44]} 20. h5 {[%clk 0:02:18]}  gxh5 {[%clk 0:01:41]} 21. g5 {[%clk 0:02:16]}  hxg5 {[%clk 0:01:34]} 22. Bxg5 {[%clk 0:02:16]}  Rh8 {[%clk 0:01:35]} 23. Rxh5+ {[%clk 0:02:12]}  Kg8 {[%clk 0:01:34]} 24. Rxh8+ {[%clk 0:02:11]}  Kxh8 {[%clk 0:01:29]} 25. Rc1 {[%clk 0:02:07]}  Rxc1+ {[%clk 0:01:24]} 26. Qxc1 {[%clk 0:02:08]}  Qc8 {[%clk 0:01:23]} 27. Qe3 {[%clk 0:01:56]}  Qd8 {[%clk 0:00:32]} 28. Qc3 {[%clk 0:01:49]}  Kg8 {[%clk 0:00:30]} 29. Nd1 {[%clk 0:01:43]}  Nc7 {[%clk 0:00:26]} 30. Qb3 {[%clk 0:01:34]}  Qe8 {[%clk 0:00:22]} 31. Ndc3 {[%clk 0:01:31]}  Na8 {[%clk 0:00:17]} 32. Be3 {[%clk 0:01:32]}  Qd8 {[%clk 0:00:15]} 33. Qc4 {[%clk 0:01:32]}  Nh5 {[%clk 0:00:15]} 34. Kd2 {[%clk 0:01:25]}  Nf4 {[%clk 0:00:15]} 35. Bd3 {[%clk 0:01:21]}  Bh6 {[%clk 0:00:15]} 36. Ne2 {[%clk 0:01:19]}  Kg7 {[%clk 0:00:15]} 37. Nxf4 {[%clk 0:01:18]}  Bxf4 {[%clk 0:00:15]} 38. Bxf4 {[%clk 0:01:18]}  exf4 {[%clk 0:00:16]} 39. Qd4+ {[%clk 0:01:15]}  Qf6 {[%clk 0:00:16]} 40. Qg1+ {[%clk 0:01:10]}  Qg6 {[%clk 0:00:14]} 41. Qf2 {[%clk 0:01:10]}  Qf6 {[%clk 0:00:13]} 42. Qg1+ {[%clk 0:00:58]}  Qg6 {[%clk 0:00:14]} 43. Qh2 {[%clk 0:00:56]}  Qf6 {[%clk 0:00:09]} 44. Kc2 {[%clk 0:00:53]}  Qd4 {[%clk 0:00:05]} 45. Nc3 {[%clk 0:00:53]}  Qe3 {[%clk 0:00:04]} 46. Qg2+ {[%clk 0:00:52]}  Kf8 {[%clk 0:00:04]} 47. Qg5 {[%clk 0:00:50]}  Be8 {[%clk 0:00:03]} 48. Qf6 {[%clk 0:00:47]}  Qxf3 {[%clk 0:00:02]} 49. Qxd6+ {[%clk 0:00:47]}  Kg7 {[%clk 0:00:02]} 50. Qe5+ {[%clk 0:00:46]}  Kf8 {[%clk 0:00:02]} 51. d6 {[%clk 0:00:45]}  Qf2+ {[%clk 0:00:02]} 52. Kb3 {[%clk 0:00:45]}  Qc5 {[%clk 0:00:02]} 53. Qe7+ {[%clk 0:00:45]}  Kg7 {[%clk 0:00:02]} 54. Qxe8 {[%clk 0:00:43]}  a4+ {[%clk 0:00:03]} 55. Nxa4 {[%clk 0:00:40]}  Qxd6 {[%clk 0:00:03]} 56. Kc2 {[%clk 0:00:34]}  Nc7 {[%clk 0:00:03]} 57. Qc6 {[%clk 0:00:34]}  Qxa3 {[%clk 0:00:03]} 58. Qc3+ {[%clk 0:00:29]}  Qxc3+ {[%clk 0:00:03]} 59. Kxc3 {[%clk 0:00:30]}  Na8 {[%clk 0:00:02]} 60. Kd4 {[%clk 0:00:30]}  Kf6 {[%clk 0:00:02]} 61. Kd5 {[%clk 0:00:30]}  Ke7 {[%clk 0:00:02]} 62. Kc6 {[%clk 0:00:29]}  Ke6 {[%clk 0:00:02]} 63. Kb7 {[%clk 0:00:29]} 1-0


[Site "https://www.chess.com"]

[Event "Titled Tuesday Blitz March 21 Early 2023"]
[White "Chernobay, Artem"]
[Black "Vogel, Roven"]
[WhiteFideId "4167406"]
[BlackFideId "12908088"]
[WhiteElo "2474"]
[BlackElo "2518"]
[Result "0-1"]
[Round "07"]
[TimeControl "180+2"]
[Date "2023.03.21"]
[WhiteClock "0:00:01"]
[BlackClock "0:00:53"]

1. e4 {[%clk 0:03:00]}  e5 {[%clk 0:02:59]} 2. Nc3 {[%clk 0:02:57]}  Nf6 {[%clk 0:02:58]} 3. g3 {[%clk 0:02:56]}  Bc5 {[%clk 0:02:57]} 4. Bg2 {[%clk 0:02:56]}  c6 {[%clk 0:02:57]} 5. Nf3 {[%clk 0:02:53]}  d5 {[%clk 0:02:51]} 6. Nxe5 {[%clk 0:02:48]}  dxe4 {[%clk 0:02:45]} 7. d3 {[%clk 0:01:58]}  Bxf2+ {[%clk 0:02:44]} 8. Kxf2 {[%clk 0:01:57]}  Qd4+ {[%clk 0:02:44]} 9. Be3 {[%clk 0:01:56]}  Qxe5 {[%clk 0:02:45]} 10. h3 {[%clk 0:01:50]}  O-O {[%clk 0:02:33]} 11. dxe4 {[%clk 0:01:42]}  Nh5 {[%clk 0:02:21]} 12. Ne2 {[%clk 0:00:46]}  f5 {[%clk 0:02:20]} 13. Nf4 {[%clk 0:00:45]}  fxe4 {[%clk 0:02:12]} 14. Rf1 {[%clk 0:00:37]}  Nxf4 {[%clk 0:01:45]} 15. gxf4 {[%clk 0:00:37]}  Qxb2 {[%clk 0:01:45]} 16. Kg1 {[%clk 0:00:34]}  Nd7 {[%clk 0:01:39]} 17. f5 {[%clk 0:00:19]}  Nf6 {[%clk 0:01:37]} 18. Bd4 {[%clk 0:00:17]}  Qa3 {[%clk 0:01:37]} 19. c3 {[%clk 0:00:15]}  Qe7 {[%clk 0:01:34]} 20. Qe2 {[%clk 0:00:12]}  Bd7 {[%clk 0:01:28]} 21. Qe3 {[%clk 0:00:11]}  b6 {[%clk 0:01:27]} 22. Qg5 {[%clk 0:00:11]}  c5 {[%clk 0:01:24]} 23. Bf2 {[%clk 0:00:09]}  Qe5 {[%clk 0:01:20]} 24. Rad1 {[%clk 0:00:06]}  Rf7 {[%clk 0:01:06]} 25. Bg3 {[%clk 0:00:05]}  Qxc3 {[%clk 0:01:05]} 26. Rd6 {[%clk 0:00:05]}  h6 {[%clk 0:00:58]} 27. Qh4 {[%clk 0:00:04]}  Re8 {[%clk 0:00:55]} 28. Bf4 {[%clk 0:00:04]}  e3 {[%clk 0:00:53]} 29. Bxh6 {[%clk 0:00:01]}  gxh6 {[%clk 0:00:53]} 0-1


[Site "https://www.chess.com"]